bitfinex/quotes_SOLUSD_20251124
["timestamp","ask_amount","ask_price","bid_price","bid_amount"]
[1764017924470,17.018864,139.09,139.06,10.92541733]
[1764017924679,3.18,139.08,139.06,10.20541733]
[1764017927785,3.89,139.08,139.06,7.19114051]
[1764017927990,3.18,139.08,139.06,7.19114051]
[1764017928571,3.83,139.08,139.06,7.19114051]
[1764017929395,3.18,139.08,139.06,7.84114051]
[1764017930592,3.18,139.08,139.06,7.19114051]
[1764017931168,3.83,139.08,139.06,7.19114051]
[1764017931782,0.65,139.07,139.06,7.19114051]
[1764017931977,3.18,139.08,139.06,7.19114051]
[1764017932182,3.83,139.08,139.06,7.19114051]
[1764017932375,3.83,139.08,139.06,10.20541733]
[1764017933995,3.83,139.08,139.06,7.19114051]
[1764017934191,3.18,139.08,139.06,7.19114051]
[1764017934404,3.86,139.08,139.06,7.19114051]
[1764017935069,3.18,139.08,139.06,7.19114051]
[1764017935504,3.86,139.08,139.06,7.19114051]
[1764017936001,0.68,139.07,139.06,7.19114051]
[1764017936809,0.7171029,139.12,139.06,7.85114051]
[1764017937026,3.18,139.11,139.07,3.01427682]
[1764017937316,3.18,139.11,139.09,3.01427682]
[1764017937491,3.86,139.11,139.09,3.01427682]
[1764017938494,3.86,139.11,139.09,7.18944362]
[1764017939086,1.3971029,139.1,139.07,10.20490024]
[1764017939291,0.68,139.1,139.08,3.01427682]
[1764017939494,0.68,139.09,139.06,7.19100161]
[1764017940301,9.52704782,139.12,139.08,3.01427682]
[1764017940509,8.80994492,139.1,139.04,18.63968353]
[1764017940730,11.82422174,139.1,139.05,10.20593449]
[1764017940908,11.82422174,139.1,139.05,28.84507868]
[1764017940909,0.68,139.09,139.05,28.84507868]
[1764017941107,3.18,139.08,139.05,7.19165767]
[1764017941499,0.68,139.07,139.05,7.19165767]
[1764017942316,16.308864,139.05,138.99,7.86143101]
[1764017942519,8.80994492,139.03,138.99,7.85454915]
[1764017942711,3.18,139.02,138.99,7.85454915]
[1764017942895,3.18,139.02,138.98,3.01427682]
[1764017943094,3.86,139.02,138.98,3.01427682]
[1764017943402,3.18,139.01,138.99,3.01427682]
[1764017943715,3.18,139.01,139.0,3.01427682]
[1764017944315,3.18,139.01,138.99,3.67427682]
[1764017944523,9.48994492,139.03,139.0,7.1942446]
[1764017944726,16.308864,139.04,139.02,3.01427682]
[1764017944899,3.18,139.03,139.01,3.67427682]
[1764017945409,3.69427682,139.02,138.96,7.85631548]
[1764017945609,3.01427682,139.01,138.96,25.8466444]
[1764017945818,3.18,139.0,138.97,0.66]
[1764017946024,3.86,139.0,138.96,25.8466444]
[1764017946219,3.18,139.0,138.96,25.8466444]
[1764017946422,0.68,138.99,138.96,25.1866444]
[1764017946602,0.68,138.99,138.96,25.8466444]
[1764017947305,3.86,139.0,138.96,28.86092122]
[1764017947609,0.68,138.99,138.96,28.86092122]
[1764017947802,3.18,139.0,138.97,3.67427682]
[1764017948032,3.18,139.02,138.99,3.01427682]
[1764017948532,3.18,139.02,139.0,0.66]
[1764017948826,0.68,139.04,139.01,7.19372706]
[1764017949135,3.18,139.03,139.01,7.19372706]
[1764017949344,3.18,139.03,139.01,25.83804473]
[1764017949520,3.18,139.04,139.02,3.67427682]
[1764017949708,0.68,139.06,139.03,3.01427682]
[1764017949709,2.82,139.05,139.03,3.01427682]
[1764017949913,0.68,139.09,139.03,0.66]
[1764017950129,3.18,139.08,139.04,3.01427682]
[1764017950434,11.98994492,139.08,139.03,0.66]
[1764017950638,11.98994492,139.08,139.01,25.17804473]
[1764017950639,21.02399435,139.04,138.99,7.19459674]
[1764017950831,4.71513035,139.03,138.98,7.85510868]
[1764017951005,5.39513035,139.03,138.98,7.85510868]
[1764017951200,0.68,139.02,138.98,7.19510868]
[1764017951408,0.68,139.03,138.99,0.66]
[1764017951710,0.68,139.03,138.99,5.37513035]
[1764017952117,0.68,139.03,138.99,0.66]
[1764017952332,20.8859669,139.04,138.99,5.37513035]
[1764017952737,0.68,139.03,138.99,5.37513035]
[1764017952916,0.68,139.03,139.0,7.1942446]
[1764017953314,0.68,139.03,138.99,7.85463032]
[1764017953520,0.68,139.03,138.99,0.66]
[1764017953718,0.68,139.03,138.99,7.85473474]
[1764017953935,0.68,139.03,138.99,12.56986509]
[1764017954124,0.68,139.03,138.99,30.55677062]
[1764017954330,0.68,139.03,138.99,29.89677062]
[1764017954510,0.68,139.03,138.99,7.85473474]
[1764017954715,0.68,139.03,138.99,12.56986509]
[1764017954930,0.68,139.03,138.99,30.55677062]
[1764017955414,18.69308582,139.08,139.02,4.71513035]
[1764017955415,8.80994492,139.07,139.02,4.71513035]
[1764017955625,12.66994492,139.07,139.02,4.71513035]
[1764017955942,16.988864,139.06,139.02,0.66]
[1764017956325,16.988864,139.06,139.02,5.37513035]
[1764017956523,16.988864,139.06,139.02,0.66]
[1764017957045,16.988864,139.06,139.03,7.19269222]
[1764017958442,9.48994492,139.07,139.04,4.71513035]
[1764017958649,1.99999999,139.14,139.04,4.71513035]
[1764017958650,0.68,139.11,139.06,4.71513035]
[1764017958950,16.308864,139.07,139.03,4.71513035]
[1764017959246,19.488864,139.07,139.04,7.19217491]
[1764017959423,3.86,139.07,139.04,11.90730526]
[1764017960155,3.86,139.07,139.04,7.19217491]
[1764017960448,0.68,139.06,139.01,5.37513035]
[1764017960652,0.68,139.06,139.02,4.71513035]
[1764017960824,0.68,139.06,139.03,4.71513035]
[1764017961521,0.68,139.06,139.03,11.90781643]
[1764017961928,20.2059669,139.07,139.03,12.56781643]
[1764017962146,20.8859669,139.07,139.03,30.54954699]
[1764017962345,0.68,139.06,139.03,7.19268608]
[1764017962626,20.2059669,139.07,139.03,12.56781643]
[1764017962931,0.69,139.06,139.03,12.56781643]
[1764017963471,14.24217817,139.05,139.0,18.66498671]
[1764017963622,3.2,139.04,139.0,23.38011706]
[1764017963821,3.89,139.04,139.0,23.38011706]
[1764017964051,3.89,139.04,139.01,4.71513035]
[1764017964256,3.89,139.04,139.01,11.90885741]
[1764017964435,1.4071029,139.11,139.03,4.71513035]
[1764017964630,0.69,139.14,139.1,4.71513035]
[1764017964951,0.69,139.14,139.07,16.308864]
[1764017965253,3.2,139.13,139.11,4.71513035]
[1764017965751,3.2,139.13,139.1,7.18903415]
[1764017965752,3.89,139.13,139.1,7.18903415]
[1764017966149,3.89,139.13,139.11,4.71513035]
[1764017966347,3.89,139.13,139.1,7.18903415]
[1764017966547,3.89,139.13,139.11,4.71513035]
[1764017966848,0.69,139.12,139.09,11.9045987]
[1764017967056,0.69,139.12,139.1,4.71513035]
[1764017967261,19.508864,139.13,139.11,4.71513035]
[1764017967562,19.508864,139.13,139.11,11.90349945]
[1764017967563,20.198864,139.13,139.11,11.90349945]
[1764017967741,19.508864,139.13,139.11,11.90349945]
[1764017967948,19.508864,139.13,139.12,4.71513035]
[1764017968467,20.198864,139.13,139.12,4.71513035]
[1764017968766,3.2,139.13,139.12,4.71513035]
[1764017969059,17.098864,139.15,139.12,4.71513035]
[1764017969245,0.1,139.15,139.14,11.90213624]
[1764017969440,0.1,139.15,139.14,7.18700589]
[1764017969754,0.1,139.15,139.14,11.90213624]
[1764017969957,0.1,139.15,139.14,12.58213624]
[1764017970263,0.1,139.19,139.14,17.29726659]
[1764017970463,0.1,139.19,139.17,16.308864]
[1764017970785,0.1,139.19,139.18,4.71513035]
[1764017970946,0.1,139.19,139.18,5.39513035]
[1764017971270,0.1,139.19,139.18,7.86494036]
[1764017971460,0.1,139.19,139.18,12.58007071]
[1764017971646,0.1,139.19,139.18,15.78007071]
[1764017972055,0.1,139.22,139.18,33.74242162]
[1764017972366,0.1,139.22,139.21,4.71513035]
[1764017972556,0.1,139.22,139.21,12.47136119]
[1764017972755,0.1,139.22,139.21,13.15136119]
[1764017973262,0.1,139.22,139.21,20.33475318]
[1764017974270,0.1,139.22,139.21,7.18339199]
[1764017974444,0.1,139.22,139.21,12.47136119]
[1764017975453,0.79,139.22,139.2,12.47136119]
[1764017975657,0.79,139.22,139.21,12.47136119]
[1764017975658,0.1,139.22,139.21,12.47136119]
[1764017976048,0.79,139.22,139.21,12.47136119]
[1764017976246,0.1,139.22,139.18,0.68]
[1764017976466,8.80994492,139.21,139.18,12.47136119]
[1764017976678,13.18846409,139.2,139.16,12.47136119]
[1764017976849,13.87846409,139.2,139.16,12.47136119]
[1764017977188,16.308864,139.16,139.12,12.47136119]
[1764017977343,16.308864,139.16,139.08,12.47136119]
[1764017977344,12.47136119,139.13,139.08,19.66134541]
[1764017977548,12.47136119,139.13,139.08,24.94272238]
[1764017977549,0.69,139.12,139.08,24.94272238]
[1764017977863,0.69,139.15,139.11,12.47136119]
[1764017978050,16.308864,139.17,139.09,3.88]
[1764017978051,16.998864,139.17,139.14,12.47136119]
[1764017978247,16.998864,139.17,139.09,3.88]
[1764017978248,0.69,139.16,139.12,12.47136119]
[1764017978547,0.69,139.16,139.1,0.68]
[1764017978548,8.80994492,139.15,139.1,0.68]
[1764017978745,35.96573304,139.17,139.14,12.47136119]
[1764017978746,0.69,139.17,139.14,12.47136119]
[1764017978954,0.69,139.17,139.16,12.47136119]
[1764017979175,0.69,139.17,139.15,12.47136119]
[1764017979367,16.308864,139.19,139.16,19.65719437]
[1764017979573,16.998864,139.19,139.16,12.47136119]
[1764017979774,9.49994492,139.18,139.14,12.47136119]
[1764017979952,21.97130611,139.18,139.13,7.18739151]
[1764017980146,0.69,139.17,139.13,19.6587527]
[1764017980352,0.69,139.17,139.06,2.71911404]
[1764017980353,8.80994492,139.16,139.08,39.83053206]
[1764017980663,37.59017011,139.16,139.11,12.47136119]
[1764017981049,0.69,139.19,139.15,12.47136119]
[1764017981250,0.69,139.19,139.17,12.47136119]
[1764017981458,0.69,139.19,139.18,12.47136119]
[1764017981849,0.69,139.19,139.14,0.68]
[1764017982246,0.1,139.22,139.18,12.47136119]
[1764017982481,0.1,139.22,139.15,0.71864893]
[1764017982778,0.1,139.22,139.21,12.47136119]
[1764017983143,0.1,139.22,139.18,0.68]
[1764017983348,0.79,139.22,139.2,12.47136119]
[1764017984081,0.1,139.22,139.18,25.82729127]
[1764017984370,0.1,139.22,139.21,12.47136119]
[1764017985354,0.1,139.22,139.21,20.33475318]
[1764017986260,0.79,139.22,139.17,16.308864]
[1764017986470,0.79,139.22,139.2,12.47136119]
[1764017986786,17.8159669,139.22,139.19,12.47136119]
[1764017986955,17.8159669,139.22,139.18,12.47136119]
[1764017987155,16.308864,139.21,139.19,12.47136119]
[1764017987357,16.998864,139.21,139.19,12.47136119]
[1764017987577,16.308864,139.21,139.19,12.47136119]
[1764017987775,16.308864,139.21,139.2,12.47136119]
[1764017988083,16.308864,139.21,139.12,44.74845964]
[1764017988084,9.51994492,139.2,139.12,0.7]
[1764017988252,0.1,139.22,139.19,12.47136119]
[1764017988560,0.1,139.22,139.13,0.7]
[1764017988561,0.1,139.22,139.21,12.47136119]
[1764017988886,0.1,139.22,139.21,13.17136119]
[1764017989182,0.1,139.22,139.21,0.7]
[1764017989390,0.1,139.22,139.21,20.35475318]
[1764017990890,0.1,139.22,139.21,7.88339199]
[1764017991061,0.1,139.22,139.21,20.35475318]
[1764017991265,0.1,139.24,139.21,20.35475318]
[1764017991266,0.1,139.24,139.22,8.80994492]
[1764017991466,0.1,139.24,139.23,22.85372131]
[1764017991665,0.1,139.24,139.23,23.55372131]
[1764017992483,0.1,139.32,139.26,25.11880892]
[1764017992659,0.1,139.32,139.26,19.508864]
[1764017992859,0.1,139.32,139.3,12.47136119]
[1764017993301,0.77,139.32,139.3,12.47136119]
[1764017993482,0.77,139.32,139.3,19.64998778]
[1764017993778,0.77,139.32,139.31,12.47136119]
[1764017993979,0.1,139.32,139.3,7.17862659]
[1764017994183,0.1,139.32,139.31,13.13136119]
[1764017994576,0.1,139.36,139.31,13.13136119]
[1764017994780,0.1,139.36,139.35,12.47136119]
[1764017994964,0.1,139.36,139.35,13.13136119]
[1764017995280,0.1,139.36,139.35,0.66]
[1764017995480,0.1,139.36,139.34,16.308864]
[1764017995481,0.1,139.36,139.32,25.12202124]
[1764017995687,0.77,139.36,139.34,12.47136119]
[1764017995868,37.59017011,139.35,139.28,17.94837581]
[1764017996061,37.59017011,139.35,139.3,12.47136119]
[1764017996265,16.308864,139.32,139.28,12.47136119]
[1764017996474,29.49732809,139.32,139.27,12.47136119]
[1764017996673,0.67,139.31,139.27,12.47136119]
[1764017997184,1.3871029,139.31,139.27,12.47136119]
[1764017997490,16.308864,139.31,139.3,12.47136119]
[1764017997676,19.508864,139.33,139.3,12.47136119]
[1764017998083,0.67,139.32,139.3,12.47136119]
[1764017998282,0.67,139.32,139.23,7.18236012]
[1764017998283,37.59017011,139.31,139.23,7.18236012]
[1764017998480,37.59017011,139.31,139.21,7.18316921]
[1764017998481,16.308864,139.26,139.21,7.18316921]
[1764017998788,21.28130611,139.29,139.23,12.47136119]
[1764017998970,16.308864,139.26,139.24,12.47136119]
[1764017999169,0.67,139.28,139.23,12.47136119]
[1764017999363,0.67,139.28,139.21,7.84316921]
[1764017999364,0.67,139.27,139.21,7.84316921]
[1764017999590,0.67,139.27,139.22,19.65423468]
[1764017999887,0.67,139.27,139.19,7.18442416]
[1764017999888,16.308864,139.24,139.19,7.18442416]
[1764018000063,16.308864,139.24,139.2,12.47136119]
[1764018000268,25.11880892,139.2,139.12,7.1880391]
[1764018000464,12.47136119,139.21,139.12,7.1880391]
[1764018000465,37.59017011,139.19,139.13,12.47136119]
[1764018000664,16.308864,139.19,139.16,12.47136119]
[1764018000867,16.308864,139.2,139.16,12.47136119]
[1764018001101,0.67,139.19,139.16,12.47136119]
[1764018001280,0.67,139.21,139.17,12.47136119]
[1764018001673,0.67,139.21,139.17,19.65666761]
[1764018002009,0.67,139.24,139.19,12.47136119]
[1764018002194,32.67022519,139.24,139.17,25.148948]
[1764018002504,20.198864,139.24,139.17,25.148948]
[1764018002683,0.67,139.23,139.18,12.47136119]
[1764018002873,0.67,139.23,139.17,7.18530642]
[1764018003063,0.67,139.23,139.17,37.62030919]
[1764018003390,12.47136119,139.22,139.17,7.18530642]
[1764018003780,0.67,139.21,139.17,19.65666761]
[1764018004287,0.67,139.21,139.16,12.47136119]
[1764018004594,0.67,139.21,139.12,37.49861761]
[1764018004595,21.28130611,139.2,139.12,37.49861761]
[1764018004777,32.00022519,139.19,139.14,12.47136119]
[1764018004976,13.14136119,139.22,139.17,12.47136119]
[1764018005191,16.308864,139.2,139.17,12.47136119]
[1764018005389,24.50130611,139.21,139.16,12.47136119]
[1764018005563,13.14136119,139.2,139.15,12.47136119]
[1764018005765,28.78022519,139.18,139.12,3.22]
[1764018006070,12.47136119,139.16,139.12,7.1880391]
[1764018006268,16.36136119,139.17,139.12,7.1880391]
[1764018006463,16.308864,139.18,139.14,12.47136119]
[1764018006464,16.308864,139.16,139.14,12.47136119]
[1764018006668,12.47136119,139.16,139.12,25.15813685]
[1764018006883,13.14136119,139.15,139.12,7.1880391]
[1764018007103,29.45022519,139.15,139.1,25.16133627]
[1764018007308,16.36136119,139.14,139.1,25.16133627]
[1764018007595,0.67,139.14,139.1,37.63269746]
[1764018008191,0.67,139.14,139.11,12.47136119]
[1764018008489,12.47136119,139.17,139.11,12.47136119]
[1764018008490,16.308864,139.16,139.13,12.47136119]
[1764018008697,19.528864,139.17,139.14,12.47136119]
[1764018008900,19.528864,139.17,139.09,3.22]
[1764018008901,0.67,139.16,139.09,7.18956324]
[1764018009192,16.308864,139.15,139.12,12.47136119]
[1764018009393,3.89,139.16,139.12,12.47136119]
[1764018009598,3.22,139.16,139.14,7.18700589]
[1764018009770,20.198864,139.16,139.14,7.18700589]
[1764018010108,16.308864,139.16,139.14,7.18700589]
[1764018010410,0.67,139.19,139.15,12.47136119]
[1764018010575,0.67,139.19,139.16,12.47136119]
[1764018010766,3.22,139.2,139.15,12.47136119]
[1764018010971,3.22,139.2,139.16,12.47136119]
[1764018011194,12.47136119,139.23,139.17,12.47136119]
[1764018011372,0.67,139.26,139.21,12.47136119]
[1764018011696,16.308864,139.24,139.22,7.18287602]
[1764018012298,0.67,139.29,139.23,12.47136119]
[1764018012599,3.89,139.28,139.23,7.16183573]
[1764018012787,16.308864,139.26,139.23,7.16183573]
[1764018012990,16.308864,139.26,139.22,7.18287602]
[1764018013194,0.67,139.27,139.23,7.16183573]
[1764018013500,16.308864,139.26,139.23,14.34371938]
[1764018014002,16.978864,139.26,139.23,7.18188365]
[1764018014586,16.308864,139.26,139.23,7.18188365]
[1764018014794,16.308864,139.24,139.22,7.18280256]
[1764018014980,19.528864,139.24,139.2,7.16183573]
[1764018015491,19.528864,139.24,139.21,14.34508452]
[1764018015492,20.198864,139.24,139.21,14.34508452]
[1764018015892,16.978864,139.24,139.21,7.18324879]
[1764018016088,0.67,139.23,139.18,7.18494036]
[1764018016399,0.67,139.23,139.18,25.14729127]
[1764018016580,0.67,139.23,139.18,32.309127]
[1764018016786,3.22,139.22,139.18,32.309127]
[1764018017308,3.89,139.22,139.18,32.309127]
[1764018017509,3.89,139.22,139.18,17.96235091]
[1764018019106,7.83183573,139.21,139.17,7.18545663]
[1764018019309,7.16183573,139.2,139.14,7.16183573]
[1764018019483,7.83183573,139.2,139.14,25.15395779]
[1764018020113,7.83183573,139.2,139.14,32.31579352]
[1764018020301,0.67,139.2,139.14,32.31579352]
[1764018020613,7.83183573,139.2,139.14,32.31579352]
[1764018020793,0.67,139.2,139.14,32.31579352]
[1764018021190,15.01580851,139.2,139.14,25.15395779]
[1764018021581,0.67,139.19,139.14,25.15395779]
[1764018022084,16.308864,139.18,139.14,7.18700589]
[1764018022302,7.16183573,139.17,139.14,7.18700589]
[1764018022503,7.83183573,139.17,139.14,7.18700589]
[1764018022883,16.308864,139.17,139.14,7.18700589]
[1764018023092,0.67,139.16,139.13,7.18739127]
[1764018023614,7.83183573,139.16,139.11,25.15994535]
[1764018023915,3.22,139.15,139.12,7.16183573]
[1764018024088,16.308864,139.17,139.13,7.16183573]
[1764018024289,19.528864,139.17,139.13,7.85183573]
[1764018025409,19.528864,139.17,139.13,0.69]
[1764018025714,7.83183573,139.16,139.1,0.69]
[1764018025892,7.16183573,139.12,139.08,7.19010641]
[1764018026090,7.16183573,139.11,139.08,7.19010641]
[1764018026324,7.83183573,139.11,139.08,7.19010641]
[1764018027015,0.67,139.1,139.08,7.19010641]
[1764018027205,7.83183573,139.11,139.08,7.19010641]
[1764018027518,7.83183573,139.11,139.07,17.97655856]
[1764018027702,0.67,139.11,139.07,17.97655856]
[1764018028321,7.16183573,139.08,139.05,7.1914607]
[1764018028520,10.38183573,139.08,139.05,7.1914607]
[1764018028697,0.67,139.07,139.05,7.1914607]
[1764018028891,0.67,139.07,139.02,7.19320961]
[1764018029098,7.83183573,139.07,139.02,7.19320961]
[1764018029396,7.83183573,139.07,139.02,25.17623363]
[1764018029597,0.67,139.06,139.02,17.98302402]
[1764018030015,0.67,139.06,139.01,7.19372706]
[1764018030216,7.83183573,139.06,139.01,7.19372706]
[1764018030520,7.83183573,139.06,139.01,25.17804473]
[1764018030905,0.67,139.06,139.01,25.86804473]
[1764018031224,0.67,139.06,139.01,33.02988046]
[1764018031412,17.97296205,139.1,139.01,33.02988046]
[1764018031413,0.67,139.12,139.05,7.16183573]
[1764018031614,0.67,139.12,139.09,7.18958947]
[1764018031824,7.16183573,139.1,139.05,7.19165767]
[1764018032012,3.22,139.09,139.05,7.19165767]
[1764018032210,3.89,139.09,139.05,7.19165767]
[1764018032814,0.67,139.08,139.04,17.98009615]
[1764018033014,0.67,139.08,138.99,0.89]
[1764018033015,7.16183573,139.06,138.99,0.89]
[1764018033225,7.16183573,139.06,138.95,9.00994492]
[1764018033226,7.16183573,139.0,138.95,0.2]
[1764018033522,7.16183573,139.0,138.95,25.3889114]
[1764018033523,3.757,138.97,138.95,25.3889114]
[1764018033736,3.757,138.97,138.95,8.08682792]
[1764018034099,6.977,138.97,138.95,15.24866365]
[1764018034298,6.977,138.97,138.95,8.08682792]
[1764018034499,6.977,138.97,138.95,0.2]
[1764018034733,14.80883573,138.97,138.95,0.2]
[1764018035327,24.14069973,138.96,138.95,0.2]
[1764018035636,23.16861404,138.95,138.94,0.1]
[1764018035838,16.308864,138.92,138.91,0.2]
[1764018036035,26.69069973,138.92,138.91,0.2]
[1764018036322,35.68064465,138.92,138.91,0.2]
[1764018037027,32.46064465,138.92,138.91,0.2]
[1764018037239,25.11880892,138.92,138.91,0.2]
[1764018037540,0.18,138.95,138.91,0.2]
[1764018037729,19.528864,138.92,138.91,0.2]
[1764018039422,35.50064465,138.92,138.91,0.2]
[1764018039841,28.33880892,138.92,138.91,0.2]
[1764018040142,35.50064465,138.92,138.91,0.2]
[1764018040327,42.87903221,138.92,138.91,0.2]
[1764018045140,8.80994492,138.91,138.89,0.2]
[1764018045338,16.15178065,138.91,138.89,0.2]
[1764018045544,8.98994492,138.91,138.89,0.2]
[1764018045764,16.15178065,138.91,138.89,0.2]
[1764018046056,19.37178065,138.91,138.89,0.2]
[1764018046263,26.57068641,138.91,138.89,0.2]
[1764018046446,28.33880892,138.91,138.89,0.2]
[1764018046637,0.7171029,138.91,138.89,7.39985622]
[1764018046838,3.9371029,138.91,138.89,0.2]
[1764018047137,0.7171029,138.93,138.9,8.08921421]
[1764018047357,7.16183573,138.94,138.91,0.69]
[1764018047552,20.2459669,138.93,138.91,0.69]
[1764018048661,8.80994492,138.96,138.91,0.69]
[1764018048662,0.7171029,138.96,138.91,7.88889369]
[1764018048838,0.7171029,138.99,138.92,7.16183573]
[1764018049040,16.308864,138.97,138.92,7.88183573]
[1764018049241,3.22,138.96,138.93,0.72]
[1764018050046,3.22,138.96,138.94,7.19735137]
[1764018050568,3.22,138.96,138.95,0.72]
[1764018050746,8.80994492,139.01,138.95,0.72]
[1764018050944,7.87893863,139.0,138.95,0.72]
[1764018051260,3.22,138.99,138.95,0.72]
[1764018051448,10.38183573,138.99,138.95,0.72]
[1764018051640,16.308864,138.97,138.95,0.72]
[1764018051840,3.22,138.99,138.95,0.72]
[1764018052246,3.22,138.98,138.95,7.91655685]
[1764018052562,3.22,138.97,138.95,7.91655685]
[1764018052870,30.66553265,138.99,138.96,0.66]
[1764018053040,3.22,138.98,138.96,0.66]
[1764018053442,3.22,138.98,138.93,7.19754839]
[1764018053736,23.47069973,138.96,138.91,0.66]
[1764018053938,24.18780263,138.96,138.91,25.85617017]
[1764018054147,16.308864,138.96,138.92,0.66]
[1764018054450,3.22,138.95,138.93,7.19786943]
[1764018054855,3.22,138.95,138.94,0.66]
[1764018055072,3.22,138.95,138.91,7.19876485]
[1764018055382,7.16183573,138.94,138.91,0.66]
[1764018055569,11.13405711,138.95,138.91,0.66]
[1764018055745,7.16183573,138.94,138.91,0.66]
[1764018056269,14.35933284,138.94,138.91,0.66]
[1764018056468,7.16183573,138.94,138.91,0.66]
[1764018056653,11.09893863,138.95,138.91,7.85880635]
[1764018056966,7.16183573,138.98,138.91,33.01790649]
[1764018057173,16.308864,138.95,138.92,0.66]
[1764018057373,19.528864,138.95,138.92,0.66]
[1764018057674,3.22,138.95,138.92,7.82183573]
[1764018058180,3.22,138.95,138.93,0.66]
[1764018058354,3.22,138.95,138.93,7.85739633]
[1764018058878,0.7171029,138.98,138.94,0.66]
[1764018059177,3.22,138.97,138.94,7.82183573]
[1764018059574,3.22,138.97,138.95,0.66]
[1764018059788,0.7171029,139.0,138.96,7.16183573]
[1764018060073,3.22,138.99,138.97,7.16183573]
[1764018060274,3.22,138.99,138.96,32.34893992]
[1764018060472,3.22,139.0,138.98,7.16183573]
[1764018060679,3.22,139.0,138.97,7.82183573]
[1764018060898,3.22,139.03,138.99,7.16183573]
[1764018061186,19.528864,139.03,138.98,7.82183573]
[1764018061478,3.22,139.03,138.98,7.82183573]
[1764018061651,0.7171029,139.04,138.99,0.66]
[1764018061855,8.80994492,139.05,138.99,0.66]
[1764018062049,3.22,139.04,138.99,7.82183573]
[1764018062261,3.22,139.03,139.0,15.01579737]
[1764018062557,3.22,139.03,139.01,7.16183573]
[1764018062756,3.22,139.03,139.01,0.66]
[1764018062954,19.528864,139.03,139.01,0.66]
[1764018064583,19.528864,139.03,139.01,7.85334702]
[1764018064798,8.80994492,139.07,139.01,32.99950042]
[1764018064997,3.22,139.05,139.02,7.82183573]
[1764018065491,3.22,139.05,139.03,0.66]
[1764018066202,3.22,139.05,139.01,25.83766469]
[1764018066499,3.22,139.05,139.02,7.85313246]
[1764018066669,7.87893863,139.08,139.02,32.99799221]
[1764018066872,3.22,139.07,139.03,7.82183573]
[1764018067098,3.22,139.07,139.02,25.17615648]
[1764018067393,32.28064465,139.05,139.0,0.66]
[1764018067594,11.09893863,139.04,139.0,0.66]
[1764018067784,3.9371029,139.04,139.0,0.66]
[1764018067982,3.22,139.04,139.0,0.66]
[1764018068497,3.9371029,139.04,139.0,7.8542446]
[1764018068671,3.22,139.04,139.01,0.66]
[1764018068868,16.308864,139.05,139.01,0.66]
[1764018069082,3.22,139.03,139.01,7.82183573]
[1764018069487,3.22,139.03,139.02,0.66]
[1764018070577,3.22,139.03,139.02,7.85320961]
[1764018070773,0.7171029,139.06,139.02,15.01504534]
[1764018070997,8.80994492,139.09,139.04,7.16183573]
[1764018071204,3.22,139.07,139.04,7.16183573]
[1764018071504,3.22,139.07,139.05,0.66]
[1764018072490,24.18780263,139.06,139.02,7.19320961]
[1764018072818,24.18780263,139.06,139.02,7.85320961]
[1764018073112,17.0259669,139.06,139.02,14.35504534]
[1764018073284,7.16183573,139.08,139.05,7.16183573]
[1764018073285,3.22,139.08,139.05,7.16183573]
[1764018073492,3.22,139.08,139.06,7.16183573]
[1764018073679,0.7171029,139.11,139.06,7.16183573]
[1764018073893,0.7171029,139.11,139.03,0.66]
[1764018073894,3.22,139.11,139.08,7.16183573]
[1764018074184,3.32,139.12,139.08,7.16183573]
[1764018074381,3.32,139.12,139.09,0.66]
[1764018074594,3.32,139.12,139.1,7.1890726]
[1764018074992,0.1,139.12,139.11,0.66]
[1764018077117,0.1,139.12,139.11,7.84855581]
[1764018077322,0.1,139.12,139.11,20.34463177]
[1764018077611,3.22,139.15,139.11,38.31602131]
[1764018077912,3.22,139.17,139.14,12.49607596]